[Event "*** Titled Tuesday Blitz"]
[Site "Chess.com"]
[Date "2020.05.05"]
[Round "10"]
[White "zala02"]
[Black "kuba2006"]
[Result "0-1"]
[WhiteElo "2258"]
[BlackElo "2421"]
[TimeControl "180+1"]
[EndTime "11:59:13 PDT"]
[Termination "kuba2006 won by resignation"]

1. d4 {[%clk 0:03:00.9]} 1... Nf6 {[%clk 0:03:00.9]} 2. c4 {[%clk 0:03:00.6]}
2... e6 {[%clk 0:03:00]} 3. Nc3 {[%clk 0:03:00.3]} 3... Bb4 {[%clk 0:02:59.2]}
4. Nf3 {[%clk 0:03:00]} 4... b6 {[%clk 0:02:59]} 5. Bg5 {[%clk 0:02:43.9]} 5...
Bb7 {[%clk 0:02:55.2]} 6. e3 {[%clk 0:02:42.8]} 6... h6 {[%clk 0:02:54.5]} 7.
Bh4 {[%clk 0:02:42.1]} 7... d6 {[%clk 0:02:43.4]} 8. Rc1 {[%clk 0:02:21.8]} 8...
g5 {[%clk 0:02:32.3]} 9. Bg3 {[%clk 0:02:21.4]} 9... Ne4 {[%clk 0:02:32.6]} 10.
Bd3 {[%clk 0:02:03.8]} 10... f5 {[%clk 0:02:32.1]} 11. d5 {[%clk 0:01:54.9]}
11... exd5 {[%clk 0:02:31.3]} 12. cxd5 {[%clk 0:01:47.5]} 12... Nd7 {[%clk
0:02:15.9]} 13. Nd4 {[%clk 0:01:35.8]} 13... Qf6 {[%clk 0:02:04.3]} 14. O-O
{[%clk 0:01:16.6]} 14... Bxc3 {[%clk 0:01:57.4]} 15. bxc3 {[%clk 0:01:17.5]}
15... Bxd5 {[%clk 0:01:56.1]} 16. c4 {[%clk 0:01:10.6]} 16... Bb7 {[%clk
0:01:51.8]} 17. Qh5+ {[%clk 0:00:55.7]} 17... Kf8 {[%clk 0:01:33.2]} 18. f3
{[%clk 0:00:38.3]} 18... Nxg3 {[%clk 0:01:24.3]} 19. hxg3 {[%clk 0:00:39.2]}
19... Ne5 {[%clk 0:01:13.8]} 20. Bb1 {[%clk 0:00:18.9]} 20... Bc8 {[%clk
0:01:06.4]} 21. g4 {[%clk 0:00:11.8]} 21... f4 {[%clk 0:01:01.9]} 22. exf4
{[%clk 0:00:12.1]} 22... Qxf4 {[%clk 0:00:59.9]} 23. Nf5 {[%clk 0:00:09.7]}
23... Bxf5 {[%clk 0:00:57.3]} 24. Bxf5 {[%clk 0:00:10.6]} 24... Kg7 {[%clk
0:00:53.6]} 25. Rfe1 {[%clk 0:00:09.5]} 25... Rae8 {[%clk 0:00:41.7]} 26. Re4
{[%clk 0:00:09.4]} 26... Nxf3+ {[%clk 0:00:38.7]} 27. gxf3 {[%clk 0:00:08.5]}
27... Qxc1+ {[%clk 0:00:33.9]} 28. Kg2 {[%clk 0:00:07.1]} 28... Qb2+ {[%clk
0:00:30.5]} 29. Kg3 {[%clk 0:00:04.8]} 29... Rxe4 {[%clk 0:00:30.5]} 30. Qg6+
{[%clk 0:00:04.7]} 30... Kf8 {[%clk 0:00:30.4]} 31. Bxe4 {[%clk 0:00:03.8]}
31... Qe5+ {[%clk 0:00:29.9]} 32. Kh3 {[%clk 0:00:03.9]} 32... Rg8 {[%clk
0:00:26.5]} 33. Qxh6+ {[%clk 0:00:02.2]} 33... Ke7 {[%clk 0:00:20.4]} 34. Qh7+
{[%clk 0:00:02.7]} 34... Qg7 {[%clk 0:00:16.5]} 35. Qxg7+ {[%clk 0:00:02.2]}
35... Rxg7 {[%clk 0:00:17.4]} 36. Bf5 {[%clk 0:00:02.9]} 36... Kf6 {[%clk
0:00:17]} 37. Kg3 {[%clk 0:00:03.3]} 37... Ke5 {[%clk 0:00:17.2]} 38. Kf2 {[%clk
0:00:03.7]} 38... Kf4 {[%clk 0:00:17.1]} 0-1

[Event "*** Titled Tuesday Blitz"]
[Site "Chess.com"]
[Date "2020.05.05"]
[Round "10"]
[White "Beca95"]
[Black "Kobalia"]
[Result "1-0"]
[WhiteElo "2876"]
[BlackElo "2746"]
[TimeControl "180+1"]
[EndTime "11:59:14 PDT"]
[Termination "Beca95 won on time"]

1. c4 {[%clk 0:03:00.9]} 1... c6 {[%clk 0:02:59.9]} 2. Nf3 {[%clk 0:03:01.3]}
2... d5 {[%clk 0:03:00.8]} 3. e3 {[%clk 0:03:01.8]} 3... Nf6 {[%clk 0:03:00.7]}
4. Nc3 {[%clk 0:03:02]} 4... a6 {[%clk 0:02:57.9]} 5. b3 {[%clk 0:03:01.6]} 5...
Bg4 {[%clk 0:02:56.1]} 6. h3 {[%clk 0:03:00.9]} 6... Bh5 {[%clk 0:02:54.6]} 7.
g4 {[%clk 0:03:00.5]} 7... Bg6 {[%clk 0:02:54.7]} 8. Bb2 {[%clk 0:02:57.2]} 8...
e6 {[%clk 0:02:51.7]} 9. Ne5 {[%clk 0:02:54.8]} 9... Nbd7 {[%clk 0:02:49]} 10.
Nxg6 {[%clk 0:02:52.7]} 10... hxg6 {[%clk 0:02:48.3]} 11. d4 {[%clk 0:02:50.2]}
11... Bd6 {[%clk 0:02:17.7]} 12. Bg2 {[%clk 0:02:44.9]} 12... O-O {[%clk
0:02:07.9]} 13. g5 {[%clk 0:02:36.2]} 13... Ne8 {[%clk 0:02:02]} 14. h4 {[%clk
0:02:36.1]} 14... Bc7 {[%clk 0:01:57.6]} 15. f4 {[%clk 0:02:35.3]} 15... Nd6
{[%clk 0:01:57]} 16. h5 {[%clk 0:02:35]} 16... Nf5 {[%clk 0:01:56.8]} 17. Kf2
{[%clk 0:02:26.8]} 17... Ba5 {[%clk 0:01:54.5]} 18. Qg4 {[%clk 0:02:11.5]} 18...
Re8 {[%clk 0:01:47.9]} 19. Rad1 {[%clk 0:01:50.5]} 19... Nf8 {[%clk 0:01:44.8]}
20. Ne2 {[%clk 0:01:50.2]} 20... gxh5 {[%clk 0:01:20.7]} 21. Rxh5 {[%clk
0:01:48.6]} 21... Ng6 {[%clk 0:01:19.3]} 22. Rdh1 {[%clk 0:01:29.7]} 22... Bb4
{[%clk 0:01:18.6]} 23. c5 {[%clk 0:01:27.4]} 23... Bd2 {[%clk 0:01:15.9]} 24.
R1h3 {[%clk 0:01:16.7]} 24... a5 {[%clk 0:01:07]} 25. e4 {[%clk 0:01:10.6]}
25... dxe4 {[%clk 0:01:00.3]} 26. Bxe4 {[%clk 0:01:11.5]} 26... a4 {[%clk
0:00:59.5]} 27. d5 {[%clk 0:01:04.8]} 27... cxd5 {[%clk 0:00:54.7]} 28. Bxf5
{[%clk 0:01:04.3]} 28... exf5 {[%clk 0:00:52.8]} 29. Qxf5 {[%clk 0:01:02.9]}
29... d4 {[%clk 0:00:34.9]} 30. Nxd4 {[%clk 0:00:50.6]} 30... Bxf4 {[%clk
0:00:29.6]} 31. Rh8+ {[%clk 0:00:22.2]} 31... Nxh8 {[%clk 0:00:27.8]} 32. Qh7+
{[%clk 0:00:22.2]} 32... Kf8 {[%clk 0:00:27.8]} 33. Qxh8+ {[%clk 0:00:22.5]}
33... Ke7 {[%clk 0:00:27.7]} 34. Qxg7 {[%clk 0:00:23]} 34... Ra6 {[%clk
0:00:13.9]} 35. Nf5+ {[%clk 0:00:21.3]} 35... Kd7 {[%clk 0:00:07.4]} 36. Rd3+
{[%clk 0:00:20.5]} 1-0

[Event "*** Titled Tuesday Blitz"]
[Site "Chess.com"]
[Date "2020.05.05"]
[Round "10"]
[White "doons21"]
[Black "THE_PLAYER6"]
[Result "1-0"]
[WhiteElo "2587"]
[BlackElo "2421"]
[TimeControl "180+1"]
[EndTime "11:59:14 PDT"]
[Termination "doons21 won by resignation"]

1. e4 {[%clk 0:03:00.9]} 1... c5 {[%clk 0:02:58.7]} 2. c3 {[%clk 0:02:59.8]}
2... Nf6 {[%clk 0:02:58]} 3. e5 {[%clk 0:03:00]} 3... Nd5 {[%clk 0:02:55.7]} 4.
d4 {[%clk 0:03:00.9]} 4... cxd4 {[%clk 0:02:54.6]} 5. Nf3 {[%clk 0:03:01.8]}
5... Nc6 {[%clk 0:02:54.7]} 6. Bc4 {[%clk 0:03:02.1]} 6... Nb6 {[%clk
0:02:52.9]} 7. Bb3 {[%clk 0:03:02.6]} 7... e6 {[%clk 0:02:48]} 8. cxd4 {[%clk
0:03:00.7]} 8... d6 {[%clk 0:02:48.4]} 9. Qe2 {[%clk 0:03:00.4]} 9... dxe5
{[%clk 0:02:48.2]} 10. dxe5 {[%clk 0:03:01.3]} 10... Bb4+ {[%clk 0:02:46]} 11.
Bd2 {[%clk 0:02:56.7]} 11... Bxd2+ {[%clk 0:02:45.4]} 12. Nbxd2 {[%clk
0:02:57.6]} 12... Nd4 {[%clk 0:02:43.6]} 13. Nxd4 {[%clk 0:02:56]} 13... Qxd4
{[%clk 0:02:44.5]} 14. O-O {[%clk 0:02:50.8]} 14... Qxb2 {[%clk 0:02:42.3]} 15.
Rab1 {[%clk 0:02:23.9]} 15... Qd4 {[%clk 0:02:26.7]} 16. Nf3 {[%clk 0:02:21]}
16... Qf4 {[%clk 0:02:22.7]} 17. Rfd1 {[%clk 0:01:54.7]} 17... O-O {[%clk
0:02:18.9]} 18. Rd4 {[%clk 0:01:55]} 18... Qh6 {[%clk 0:01:49.2]} 19. Rh4 {[%clk
0:01:54.5]} 19... Qg6 {[%clk 0:01:49.4]} 20. Bc2 {[%clk 0:01:54.3]} 20... f5
{[%clk 0:01:49.8]} 21. exf6 {[%clk 0:01:54.7]} 21... Qxf6 {[%clk 0:01:49.7]} 22.
Bxh7+ {[%clk 0:01:51.4]} 22... Kh8 {[%clk 0:01:48]} 23. Ne5 {[%clk 0:01:14.3]}
23... Qxh4 {[%clk 0:01:33.8]} 24. Ng6+ {[%clk 0:01:13.3]} 24... Kxh7 {[%clk
0:01:34.2]} 25. Nxh4 {[%clk 0:01:13.6]} 25... Nd5 {[%clk 0:01:31.8]} 26. Qe4+
{[%clk 0:01:02.3]} 26... Kg8 {[%clk 0:01:30.1]} 27. Ng6 {[%clk 0:00:54.2]} 27...
Rf6 {[%clk 0:01:28.2]} 28. h4 {[%clk 0:00:36.1]} 28... Nc3 {[%clk 0:01:26.2]}
29. Qd3 {[%clk 0:00:33.7]} 29... Nxb1 {[%clk 0:01:23.8]} 30. Qd8+ {[%clk
0:00:30]} 30... Kh7 {[%clk 0:01:16.2]} 31. h5 {[%clk 0:00:30.2]} 31... Rxg6
{[%clk 0:01:00.3]} 32. hxg6+ {[%clk 0:00:29.6]} 32... Kxg6 {[%clk 0:01:00.1]}
33. Qd3+ {[%clk 0:00:28.7]} 33... Kf7 {[%clk 0:01:00]} 34. Qxb1 {[%clk
0:00:27.5]} 34... Ke7 {[%clk 0:00:51.4]} 35. Qb4+ {[%clk 0:00:24.8]} 35... Ke8
{[%clk 0:00:45]} 36. Qc3 {[%clk 0:00:17.4]} 36... Bd7 {[%clk 0:00:38.2]} 37.
Qxg7 {[%clk 0:00:17.3]} 37... Rc8 {[%clk 0:00:38.6]} 38. Kh2 {[%clk 0:00:17.3]}
38... b5 {[%clk 0:00:36.6]} 39. f3 {[%clk 0:00:17]} 39... a5 {[%clk 0:00:37]}
40. g4 {[%clk 0:00:16.4]} 40... b4 {[%clk 0:00:37.4]} 41. Qg8+ {[%clk
0:00:16.5]} 41... Ke7 {[%clk 0:00:37.2]} 42. Qg7+ {[%clk 0:00:16.9]} 42... Ke8
{[%clk 0:00:33.9]} 43. Qg8+ {[%clk 0:00:17]} 43... Ke7 {[%clk 0:00:32.4]} 44.
Qg5+ {[%clk 0:00:17.9]} 1-0

[Event "*** Titled Tuesday Blitz"]
[Site "Chess.com"]
[Date "2020.05.05"]
[Round "10"]
[White "Nellichka"]
[Black "hazy13"]
[Result "0-1"]
[WhiteElo "2079"]
[BlackElo "2189"]
[TimeControl "180+1"]
[EndTime "11:59:15 PDT"]
[Termination "hazy13 won on time"]

1. d4 {[%clk 0:02:18.5]} 1... Nf6 {[%clk 0:02:55.2]} 2. c4 {[%clk 0:02:16.8]}
2... c6 {[%clk 0:02:55.2]} 3. Nc3 {[%clk 0:02:14.6]} 3... d5 {[%clk 0:02:54.5]}
4. cxd5 {[%clk 0:02:14]} 4... cxd5 {[%clk 0:02:52.6]} 5. Bf4 {[%clk 0:02:12.9]}
5... e6 {[%clk 0:02:44.9]} 6. e3 {[%clk 0:02:09.3]} 6... Nc6 {[%clk 0:02:43.9]}
7. Rc1 {[%clk 0:02:04.3]} 7... Bb4 {[%clk 0:02:42.7]} 8. Nf3 {[%clk 0:01:55.3]}
8... O-O {[%clk 0:02:42.4]} 9. Bd3 {[%clk 0:01:53.5]} 9... Bd7 {[%clk
0:02:33.6]} 10. O-O {[%clk 0:01:51.1]} 10... Rc8 {[%clk 0:02:32.4]} 11. a3
{[%clk 0:01:43.7]} 11... Be7 {[%clk 0:02:24.8]} 12. b4 {[%clk 0:01:37.7]} 12...
Nb8 {[%clk 0:02:01.6]} 13. Nb5 {[%clk 0:01:28.1]} 13... Bxb5 {[%clk 0:01:57.7]}
14. Bxb5 {[%clk 0:01:27]} 14... a5 {[%clk 0:01:53.9]} 15. Rxc8 {[%clk 0:01:19]}
15... Qxc8 {[%clk 0:01:53.5]} 16. bxa5 {[%clk 0:01:18.6]} 16... Bxa3 {[%clk
0:01:52.3]} 17. Qb3 {[%clk 0:01:17.6]} 17... Be7 {[%clk 0:01:48.1]} 18. Qb2
{[%clk 0:00:59]} 18... Nc6 {[%clk 0:01:23.4]} 19. Rc1 {[%clk 0:00:57.6]} 19...
Qa8 {[%clk 0:01:23.2]} 20. a6 {[%clk 0:00:56]} 20... Nb4 {[%clk 0:01:20.7]} 21.
Rc7 {[%clk 0:00:49.5]} 21... bxa6 {[%clk 0:01:13.5]} 22. Rxe7 {[%clk 0:00:18.8]}
22... axb5 {[%clk 0:01:10.5]} 23. h4 {[%clk 0:00:18.3]} 23... Nd3 {[%clk
0:01:04.7]} 24. Qxb5 {[%clk 0:00:16.4]} 24... Nxf4 {[%clk 0:01:03.8]} 25. exf4
{[%clk 0:00:15.2]} 25... Qa1+ {[%clk 0:00:57.4]} 26. Qf1 {[%clk 0:00:14.3]}
26... Qb2 {[%clk 0:00:51.2]} 27. Ne5 {[%clk 0:00:12.7]} 27... Qxd4 {[%clk
0:00:47.7]} 28. Qc1 {[%clk 0:00:11.1]} 28... Ne4 {[%clk 0:00:43.5]} 29. Ng4
{[%clk 0:00:09.1]} 29... h5 {[%clk 0:00:38.9]} 30. Ne3 {[%clk 0:00:08.8]} 30...
Rb8 {[%clk 0:00:29.9]} 31. Qc7 {[%clk 0:00:06.4]} 31... Rf8 {[%clk 0:00:29.8]}
32. Qc1 {[%clk 0:00:05]} 32... Qf6 {[%clk 0:00:27.1]} 33. Rc7 {[%clk 0:00:04.2]}
33... Qxh4 {[%clk 0:00:26.4]} 34. g3 {[%clk 0:00:03.1]} 34... Nxg3 {[%clk
0:00:23.5]} 35. fxg3 {[%clk 0:00:02.9]} 35... Qxg3+ {[%clk 0:00:24.4]} 36. Ng2
{[%clk 0:00:03.2]} 36... h4 {[%clk 0:00:22.5]} 37. Qc3 {[%clk 0:00:02.3]} 37...
Qg4 {[%clk 0:00:21.2]} 0-1

[Event "*** Titled Tuesday Blitz"]
[Site "Chess.com"]
[Date "2020.05.05"]
[Round "10"]
[White "PotapovaM"]
[Black "DrBergerBerger"]
[Result "1-0"]
[WhiteElo "2396"]
[BlackElo "2485"]
[TimeControl "180+1"]
[EndTime "11:59:18 PDT"]
[Termination "PotapovaM won on time"]

1. d4 {[%clk 0:03:00.9]} 1... g6 {[%clk 0:02:57.7]} 2. e4 {[%clk 0:03:00.6]}
2... Bg7 {[%clk 0:02:57.8]} 3. Nc3 {[%clk 0:03:01.2]} 3... d6 {[%clk 0:02:57.9]}
4. Be3 {[%clk 0:03:01.9]} 4... a6 {[%clk 0:02:57.9]} 5. h4 {[%clk 0:03:02.5]}
5... h6 {[%clk 0:02:52.2]} 6. h5 {[%clk 0:03:02.1]} 6... g5 {[%clk 0:02:52]} 7.
f4 {[%clk 0:03:02.7]} 7... gxf4 {[%clk 0:02:50.5]} 8. Bxf4 {[%clk 0:03:03.6]}
8... Nc6 {[%clk 0:02:49.2]} 9. Nf3 {[%clk 0:03:02.8]} 9... Bg4 {[%clk
0:02:47.7]} 10. Be3 {[%clk 0:02:55.3]} 10... Nf6 {[%clk 0:02:32.1]} 11. Qd2
{[%clk 0:02:55.4]} 11... b5 {[%clk 0:02:20.2]} 12. O-O-O {[%clk 0:02:54.8]}
12... b4 {[%clk 0:02:18.8]} 13. Nd5 {[%clk 0:02:48.2]} 13... Nxe4 {[%clk
0:02:13.2]} 14. Qd3 {[%clk 0:02:48]} 14... Nf6 {[%clk 0:02:01.7]} 15. Nxf6+
{[%clk 0:02:34.4]} 15... Bxf6 {[%clk 0:02:02.6]} 16. Kb1 {[%clk 0:02:34.5]}
16... Qd7 {[%clk 0:01:53.5]} 17. Be2 {[%clk 0:02:30.4]} 17... Bf5 {[%clk
0:01:51]} 18. Qd2 {[%clk 0:02:30.4]} 18... a5 {[%clk 0:01:48.2]} 19. Bb5 {[%clk
0:02:29]} 19... d5 {[%clk 0:01:33.9]} 20. Rhf1 {[%clk 0:02:16.9]} 20... e6
{[%clk 0:01:30.3]} 21. Bf4 {[%clk 0:02:11.4]} 21... Rg8 {[%clk 0:01:08.3]} 22.
Be5 {[%clk 0:02:10.7]} 22... Be7 {[%clk 0:01:06.9]} 23. Bf4 {[%clk 0:02:07.7]}
23... Bd6 {[%clk 0:01:05.1]} 24. Bxh6 {[%clk 0:02:05.1]} 24... a4 {[%clk
0:01:04.7]} 25. Ng5 {[%clk 0:01:29.6]} 25... Ra5 {[%clk 0:00:54.5]} 26. Qe2
{[%clk 0:01:19]} 26... Kd8 {[%clk 0:00:38.9]} 27. g4 {[%clk 0:01:11.5]} 27...
Bxc2+ {[%clk 0:00:27.3]} 28. Kxc2 {[%clk 0:01:07.8]} 28... Rxb5 {[%clk
0:00:26.9]} 29. Rxf7 {[%clk 0:01:02.3]} 29... Be7 {[%clk 0:00:23]} 30. Nxe6+
{[%clk 0:00:53.5]} 30... Kc8 {[%clk 0:00:22.9]} 31. Kb1 {[%clk 0:00:37.7]} 31...
Rb6 {[%clk 0:00:19.7]} 32. g5 {[%clk 0:00:34.4]} 32... b3 {[%clk 0:00:19.7]} 33.
a3 {[%clk 0:00:34]} 33... Qe8 {[%clk 0:00:15.6]} 34. g6 {[%clk 0:00:33.1]} 34...
Bd6 {[%clk 0:00:14.8]} 35. Bg5 {[%clk 0:00:28.5]} 35... Kb7 {[%clk 0:00:07.2]}
36. Re1 {[%clk 0:00:28.3]} 36... Qa8 {[%clk 0:00:04]} 37. g7 {[%clk 0:00:25.6]}
37... Na5 {[%clk 0:00:03.9]} 38. Nc5+ {[%clk 0:00:22.9]} 38... Bxc5 {[%clk
0:00:02.2]} 39. dxc5 {[%clk 0:00:23.8]} 39... Rc6 {[%clk 0:00:01.9]} 40. h6
{[%clk 0:00:22.8]} 40... Nc4 {[%clk 0:00:01.3]} 41. h7 {[%clk 0:00:22.7]} 1-0

[Event "*** Titled Tuesday Blitz"]
[Site "Chess.com"]
[Date "2020.05.05"]
[Round "10"]
[White "Munkhzul_Turmunkh"]
[Black "martabartel"]
[Result "0-1"]
[WhiteElo "2473"]
[BlackElo "2299"]
[TimeControl "180+1"]
[EndTime "11:59:18 PDT"]
[Termination "martabartel won on time"]

1. e4 {[%clk 0:03:00.9]} 1... g6 {[%clk 0:02:59.5]} 2. d4 {[%clk 0:03:00.5]}
2... Bg7 {[%clk 0:02:59.7]} 3. Nc3 {[%clk 0:03:01]} 3... c6 {[%clk 0:02:59.8]}
4. Nf3 {[%clk 0:03:00.7]} 4... d6 {[%clk 0:02:59.4]} 5. Be2 {[%clk 0:03:00.6]}
5... Nf6 {[%clk 0:02:56.8]} 6. O-O {[%clk 0:03:00.4]} 6... O-O {[%clk
0:02:56.9]} 7. a4 {[%clk 0:03:00]} 7... a5 {[%clk 0:02:55.4]} 8. h3 {[%clk
0:02:59.4]} 8... Na6 {[%clk 0:02:53.2]} 9. Be3 {[%clk 0:02:58.7]} 9... c5 {[%clk
0:02:52.9]} 10. Bxa6 {[%clk 0:02:50.8]} 10... cxd4 {[%clk 0:02:39.9]} 11. Nxd4
{[%clk 0:02:22.8]} 11... Rxa6 {[%clk 0:02:28.1]} 12. Ndb5 {[%clk 0:02:22]} 12...
Bd7 {[%clk 0:02:19.4]} 13. Qd3 {[%clk 0:02:17.2]} 13... Bc6 {[%clk 0:02:13.1]}
14. Rad1 {[%clk 0:02:12.5]} 14... Ra8 {[%clk 0:02:06.4]} 15. Rfe1 {[%clk
0:02:10.7]} 15... Nd7 {[%clk 0:01:59.8]} 16. f4 {[%clk 0:02:05.7]} 16... Nc5
{[%clk 0:01:54.1]} 17. Bxc5 {[%clk 0:01:49.3]} 17... dxc5 {[%clk 0:01:53.9]} 18.
Qc4 {[%clk 0:01:41.8]} 18... Qb6 {[%clk 0:01:49.8]} 19. e5 {[%clk 0:01:40.8]}
19... Rad8 {[%clk 0:01:36.4]} 20. b3 {[%clk 0:01:30.8]} 20... Bh6 {[%clk
0:01:25.9]} 21. g3 {[%clk 0:01:15.1]} 21... Bf3 {[%clk 0:01:17.6]} 22. Nd5
{[%clk 0:01:09.8]} 22... Qe6 {[%clk 0:01:09.9]} 23. Nbc7 {[%clk 0:00:10.7]}
23... Qxh3 {[%clk 0:01:08.3]} 24. Kf2 {[%clk 0:00:10.4]} 24... Qg2+ {[%clk
0:00:59.8]} 25. Ke3 {[%clk 0:00:09.9]} 25... Bxd1 {[%clk 0:00:55.8]} 26. Rxd1
{[%clk 0:00:09.1]} 26... Qxg3+ {[%clk 0:00:55.3]} 27. Ke2 {[%clk 0:00:08.9]}
27... Qg2+ {[%clk 0:00:43.8]} 28. Ke1 {[%clk 0:00:07.7]} 28... e6 {[%clk
0:00:25]} 29. Nf6+ {[%clk 0:00:07.1]} 29... Kg7 {[%clk 0:00:24]} 30. Rxd8 {[%clk
0:00:04.5]} 30... Rxd8 {[%clk 0:00:23.7]} 31. Nce8+ {[%clk 0:00:03.8]} 31... Kh8
{[%clk 0:00:19.3]} 32. Nd6 {[%clk 0:00:03.5]} 32... Kg7 {[%clk 0:00:16.4]} 33.
Nde8+ {[%clk 0:00:02.4]} 33... Kf8 {[%clk 0:00:15]} 34. Nd6 {[%clk 0:00:02.1]}
34... Bxf4 {[%clk 0:00:14.2]} 0-1

[Event "*** Titled Tuesday Blitz"]
[Site "Chess.com"]
[Date "2020.05.05"]
[Round "10"]
[White "picturesquecheck"]
[Black "Filip_Covic"]
[Result "1/2-1/2"]
[WhiteElo "2110"]
[BlackElo "2362"]
[TimeControl "180+1"]
[EndTime "11:59:20 PDT"]
[Termination "Game drawn - insufficient material"]

1. e4 {[%clk 0:03:00.9]} 1... c5 {[%clk 0:02:57.7]} 2. Nf3 {[%clk 0:03:00.2]}
2... Nc6 {[%clk 0:02:58.1]} 3. d4 {[%clk 0:03:00.4]} 3... cxd4 {[%clk 0:02:59]}
4. Nxd4 {[%clk 0:03:00.9]} 4... g6 {[%clk 0:02:59.6]} 5. Nc3 {[%clk 0:02:59.7]}
5... Bg7 {[%clk 0:02:59.1]} 6. Be3 {[%clk 0:02:59.6]} 6... Nf6 {[%clk
0:02:59.2]} 7. Bc4 {[%clk 0:02:58.4]} 7... O-O {[%clk 0:02:59.2]} 8. Bb3 {[%clk
0:02:57.2]} 8... d6 {[%clk 0:02:59.2]} 9. f3 {[%clk 0:02:56.8]} 9... Bd7 {[%clk
0:02:58.5]} 10. Qd2 {[%clk 0:02:56.9]} 10... Nxd4 {[%clk 0:02:58.9]} 11. Bxd4
{[%clk 0:02:56.6]} 11... b5 {[%clk 0:02:59.4]} 12. a4 {[%clk 0:02:45.1]} 12...
b4 {[%clk 0:02:43]} 13. Nd5 {[%clk 0:02:44.5]} 13... Nxd5 {[%clk 0:02:40.1]} 14.
Bxg7 {[%clk 0:02:43.2]} 14... Kxg7 {[%clk 0:02:41]} 15. exd5 {[%clk 0:02:42.7]}
15... Qa5 {[%clk 0:02:36]} 16. O-O {[%clk 0:02:41]} 16... Qc5+ {[%clk
0:02:33.1]} 17. Qf2 {[%clk 0:02:36.1]} 17... Qxf2+ {[%clk 0:02:12.4]} 18. Rxf2
{[%clk 0:02:35.9]} 18... a5 {[%clk 0:02:12.4]} 19. Re2 {[%clk 0:02:35.7]} 19...
Kf6 {[%clk 0:02:10.8]} 20. Rae1 {[%clk 0:02:35.3]} 20... Rfe8 {[%clk 0:02:10.5]}
21. Kf2 {[%clk 0:02:35.1]} 21... Rac8 {[%clk 0:02:09.5]} 22. g4 {[%clk
0:02:32.9]} 22... g5 {[%clk 0:02:07.6]} 23. Kg3 {[%clk 0:02:28.9]} 23... e5
{[%clk 0:01:21.5]} 24. dxe6 {[%clk 0:02:24.3]} 24... Bxe6 {[%clk 0:01:19.5]} 25.
Bxe6 {[%clk 0:02:21.3]} 25... Rxe6 {[%clk 0:01:20.4]} 26. Rxe6+ {[%clk
0:02:20.1]} 26... fxe6 {[%clk 0:01:21.3]} 27. Re2 {[%clk 0:02:19.7]} 27... e5
{[%clk 0:01:12.4]} 28. Kf2 {[%clk 0:02:11.4]} 28... d5 {[%clk 0:01:08.8]} 29.
Ke3 {[%clk 0:02:07.9]} 29... Rc4 {[%clk 0:01:03.5]} 30. Kd3 {[%clk 0:02:01.8]}
30... Rd4+ {[%clk 0:00:58.3]} 31. Ke3 {[%clk 0:02:01]} 31... Rf4 {[%clk
0:00:38.2]} 32. Rd2 {[%clk 0:01:54.4]} 32... Ke6 {[%clk 0:00:29.8]} 33. h3
{[%clk 0:01:54.4]} 33... Kd6 {[%clk 0:00:27.6]} 34. Rd3 {[%clk 0:01:33.9]} 34...
Rc4 {[%clk 0:00:20.6]} 35. Rd2 {[%clk 0:01:32.4]} 35... Kc5 {[%clk 0:00:18.5]}
36. Rh2 {[%clk 0:01:23.1]} 36... e4 {[%clk 0:00:04.1]} 37. fxe4 {[%clk 0:01:22]}
37... Rxe4+ {[%clk 0:00:05]} 38. Kd3 {[%clk 0:01:21.8]} 38... Rf4 {[%clk
0:00:05]} 39. h4 {[%clk 0:01:17.3]} 39... Rxg4 {[%clk 0:00:03.9]} 40. hxg5
{[%clk 0:01:16.9]} 40... Rxg5 {[%clk 0:00:04.8]} 41. Rxh7 {[%clk 0:01:16.6]}
41... Rg3+ {[%clk 0:00:05.3]} 42. Kd2 {[%clk 0:01:16.5]} 42... b3 {[%clk
0:00:03.1]} 43. cxb3 {[%clk 0:01:15.9]} 43... Rxb3 {[%clk 0:00:02.5]} 44. Kc2
{[%clk 0:01:16.1]} 44... Rb4 {[%clk 0:00:02.4]} 45. b3 {[%clk 0:01:16.5]} 45...
Rg4 {[%clk 0:00:02.2]} 46. Rc7+ {[%clk 0:01:16.2]} 46... Kb6 {[%clk 0:00:02]}
47. Rd7 {[%clk 0:01:15.9]} 47... d4 {[%clk 0:00:02.1]} 48. Kd3 {[%clk
0:01:15.3]} 48... Rg3+ {[%clk 0:00:02.5]} 49. Kc4 {[%clk 0:01:13.9]} 49... Rc3+
{[%clk 0:00:02.5]} 50. Kxd4 {[%clk 0:01:13.1]} 50... Rxb3 {[%clk 0:00:03]} 51.
Rd6+ {[%clk 0:01:12.3]} 51... Kc7 {[%clk 0:00:02.5]} 52. Ra6 {[%clk 0:01:10.8]}
52... Rb4+ {[%clk 0:00:02.7]} 53. Kc3 {[%clk 0:01:10.8]} 53... Rxa4 {[%clk
0:00:03.2]} 54. Rh6 {[%clk 0:01:09.8]} 54... Rb4 {[%clk 0:00:02.5]} 55. Ra6
{[%clk 0:01:07.1]} 55... Kb7 {[%clk 0:00:02.4]} 56. Rxa5 {[%clk 0:01:06.7]}
56... Rb6 {[%clk 0:00:03]} 57. Ra3 {[%clk 0:01:06.2]} 57... Rc6+ {[%clk
0:00:03.6]} 58. Kb2 {[%clk 0:01:05.7]} 58... Ra6 {[%clk 0:00:04.5]} 59. Rxa6
{[%clk 0:01:05.3]} 59... Kxa6 {[%clk 0:00:04.7]} 1/2-1/2

[Event "*** Titled Tuesday Blitz"]
[Site "Chess.com"]
[Date "2020.05.05"]
[Round "10"]
[White "Trickov"]
[Black "marszach123"]
[Result "1-0"]
[WhiteElo "2293"]
[BlackElo "2138"]
[TimeControl "180+1"]
[EndTime "11:59:25 PDT"]
[Termination "Trickov won on time"]

1. d4 {[%clk 0:03:00]} 1... Nf6 {[%clk 0:02:59.2]} 2. Nf3 {[%clk 0:02:59.4]}
2... e6 {[%clk 0:02:57]} 3. g3 {[%clk 0:02:58.5]} 3... d5 {[%clk 0:02:55.4]} 4.
Bg2 {[%clk 0:02:58.3]} 4... Be7 {[%clk 0:02:55.7]} 5. c4 {[%clk 0:02:56.9]} 5...
O-O {[%clk 0:02:55.8]} 6. Qc2 {[%clk 0:02:57.1]} 6... dxc4 {[%clk 0:02:53.9]} 7.
O-O {[%clk 0:02:55.6]} 7... a6 {[%clk 0:02:50.4]} 8. a4 {[%clk 0:02:53.2]} 8...
c5 {[%clk 0:02:41.9]} 9. Qxc4 {[%clk 0:02:47.6]} 9... Nbd7 {[%clk 0:02:24.2]}
10. Rd1 {[%clk 0:02:38.7]} 10... b5 {[%clk 0:02:00.6]} 11. Qc2 {[%clk
0:02:36.1]} 11... Bb7 {[%clk 0:01:53.4]} 12. axb5 {[%clk 0:02:26.8]} 12... axb5
{[%clk 0:01:52.8]} 13. Rxa8 {[%clk 0:02:21.7]} 13... Qxa8 {[%clk 0:01:53.4]} 14.
dxc5 {[%clk 0:02:16.8]} 14... Nxc5 {[%clk 0:01:47.8]} 15. Be3 {[%clk 0:02:10.3]}
15... Rc8 {[%clk 0:01:44]} 16. Nbd2 {[%clk 0:01:30.3]} 16... Nd5 {[%clk
0:01:35.5]} 17. Bd4 {[%clk 0:01:21.2]} 17... Na4 {[%clk 0:01:04.3]} 18. Qb3
{[%clk 0:01:15.2]} 18... Nc7 {[%clk 0:00:48.8]} 19. Ne1 {[%clk 0:00:58.2]} 19...
Bd5 {[%clk 0:00:42.9]} 20. Bxd5 {[%clk 0:00:52.9]} 20... Qxd5 {[%clk 0:00:42.6]}
21. Nef3 {[%clk 0:00:42.7]} 21... Bc5 {[%clk 0:00:32.8]} 22. Bxc5 {[%clk
0:00:38.7]} 22... Nxc5 {[%clk 0:00:32.1]} 23. Qe3 {[%clk 0:00:31.8]} 23... Na4
{[%clk 0:00:25]} 24. b3 {[%clk 0:00:29.4]} 24... Nc5 {[%clk 0:00:20.4]} 25. Rc1
{[%clk 0:00:27.4]} 25... N7a6 {[%clk 0:00:19.2]} 26. Ne4 {[%clk 0:00:22.5]}
26... f5 {[%clk 0:00:10.9]} 27. Neg5 {[%clk 0:00:18.3]} 27... h6 {[%clk
0:00:10]} 28. Nh3 {[%clk 0:00:09.4]} 28... Rd8 {[%clk 0:00:07.4]} 29. Nf4 {[%clk
0:00:09]} 29... Qxb3 {[%clk 0:00:06.5]} 30. Qe5 {[%clk 0:00:05.8]} 30... Qa3
{[%clk 0:00:04.3]} 31. Rb1 {[%clk 0:00:04.8]} 31... Qa2 {[%clk 0:00:03.9]} 32.
Rxb5 {[%clk 0:00:03.9]} 32... Nd7 {[%clk 0:00:01.9]} 33. Qxe6+ {[%clk
0:00:03.5]} 1-0